bitfinex/quotes_SOLUSD_20260103
["timestamp","ask_amount","ask_price","bid_price","bid_amount"]
[1767446514414,0.703129,131.15,131.12,9.98702134]
[1767446517918,0.703129,131.15,131.13,1.68868223]
[1767446518204,0.703129,131.15,131.13,9.31468008]
[1767446518524,0.703129,131.15,131.13,7.62599785]
[1767446519628,0.703129,131.15,131.13,8.29785157]
[1767446520731,0.703129,131.15,131.13,9.9865338]
[1767446528131,0.71918705,131.18,131.15,0.68237666]
[1767446528344,0.71918705,131.18,131.15,1.68868223]
[1767446528929,0.71918705,131.18,131.14,2.37105889]
[1767446529336,0.71918705,131.18,131.15,1.68868223]
[1767446529523,0.71918705,131.18,131.14,2.37105889]
[1767446530739,0.71918705,131.18,131.14,9.99595082]
[1767446534226,0.71918705,131.18,131.14,8.30726859]
[1767446534530,0.71918705,131.18,131.14,9.99595082]
[1767446534839,0.71918705,131.18,131.14,8.30726859]
[1767446535052,0.71918705,131.18,131.14,1.68868223]
[1767446536939,0.71918705,131.19,131.16,1.68868223]
[1767446537120,0.71918705,131.19,131.16,2.06682443]
[1767446538045,0.71918705,131.19,131.16,8.00210424]
[1767446540339,0.71918705,131.2,131.17,0.3781422]
[1767446541045,0.71918705,131.2,131.16,9.69078647]
[1767446543138,4.69732691,131.21,131.18,2.06682443]
[1767446543543,0.71918705,131.21,131.18,2.06682443]
[1767446544331,0.71918705,131.21,131.18,0.3781422]
[1767446545333,0.71918705,131.2,131.17,9.69020044]
[1767446553551,0.71918705,131.2,131.18,0.3781422]
[1767446553739,0.71918705,131.2,131.18,2.06682443]
[1767446554454,0.1,131.22,131.18,2.06682443]
[1767446554653,0.1,131.22,131.18,3.01421723]
[1767446555254,0.1,131.22,131.18,0.3781422]
[1767446555459,0.1,131.22,131.18,3.01421723]
[1767446555637,0.1,131.22,131.19,8.31863709]
[1767446556040,0.1,131.22,131.2,0.69610489]
[1767446556343,0.78476567,131.22,131.19,10.25860723]
[1767446556535,0.1,131.22,131.2,2.63607503]
[1767446556947,0.78476567,131.22,131.2,2.63607503]
[1767446558060,0.78476567,131.22,131.2,10.25799563]
[1767446558958,0.78476567,131.22,131.2,7.6219206]
[1767446559159,0.78476567,131.22,131.2,10.25799563]
[1767446562469,0.78476567,131.22,131.2,7.6219206]
[1767446562659,0.78476567,131.22,131.2,10.25799563]
[1767446563270,0.78476567,131.22,131.2,10.19799563]
[1767446564356,0.78476567,131.22,131.2,10.59921999]
[1767446565262,0.1,131.22,131.2,10.59921999]
[1767446567266,0.78476567,131.22,131.2,10.19799563]
[1767446567665,0.68476567,131.23,131.21,2.63607503]
[1767446568364,0.68476567,131.23,131.2,10.59921999]
[1767446569868,0.68476567,131.23,131.21,2.63607503]
[1767446573153,0.78476567,131.24,131.21,10.65866955]
[1767446575978,0.78476567,131.24,131.21,8.02259452]
[1767446576273,0.78476567,131.24,131.21,10.25744519]
[1767446577276,0.78476567,131.24,131.21,10.65866955]
[1767446579983,0.1,131.24,131.22,3.03729939]
[1767446580574,0.75854739,131.24,131.22,3.03729939]
[1767446580772,0.75854739,131.24,131.22,2.63607503]
[1767446581769,0.1,131.24,131.23,0.40122436]
[1767446581974,0.1,131.24,131.22,10.25677414]
[1767446586564,0.75854739,131.24,131.22,10.25677414]
[1767446589684,0.75854739,131.24,131.23,2.63607503]
[1767446591781,0.75854739,131.24,131.22,7.96192347]
[1767446591984,0.75854739,131.24,131.23,2.63607503]
[1767446594576,0.75854739,131.24,131.22,2.63607503]
[1767446595896,0.75854739,131.24,131.22,10.25671573]
[1767446596692,0.75854739,131.24,131.22,2.63607503]
[1767446600994,0.75854739,131.24,131.21,7.96246026]
[1767446601195,0.75854739,131.24,131.22,2.63607503]
[1767446603100,0.75854739,131.24,131.22,2.57607503]
[1767446604498,0.1,131.24,131.23,2.97729939]
[1767446604799,23.15078343,131.25,131.23,2.97729939]
[1767446605981,23.80933082,131.25,131.24,2.63607503]
[1767446607701,0.1,131.27,131.25,7.66514378]
[1767446607898,4.73513652,131.28,131.26,2.63607503]
[1767446608203,0.75854739,131.28,131.27,2.63607503]
[1767446608802,0.1,131.29,131.27,2.63607503]
[1767446609387,0.1,131.29,131.26,0.65854739]
[1767446609587,0.1,131.29,131.27,2.63607503]
[1767446610805,0.81747519,131.29,131.26,0.65854739]
[1767446610998,0.81747519,131.29,131.27,2.63607503]
[1767446614088,0.81747519,131.29,131.26,0.65854739]
[1767446614289,0.81747519,131.29,131.27,2.63607503]
[1767446614605,0.71747519,131.28,131.26,2.63607503]
[1767446614787,0.71747519,131.28,131.25,8.27739212]
[1767446614788,0.71747519,131.28,131.25,0.65854739]
[1767446614989,0.71747519,131.28,131.24,2.63607503]
[1767446615609,0.71747519,131.26,131.24,2.63607503]
[1767446616310,0.71747519,131.26,131.22,0.65854739]
[1767446617103,0.71747519,131.26,131.22,8.27926988]
[1767446617726,0.71747519,131.25,131.22,8.27926988]
[1767446617925,0.71747519,131.25,131.22,0.65854739]
[1767446618099,0.71747519,131.25,131.21,9.96603382]
[1767446618820,0.71747519,131.28,131.25,0.65854739]
[1767446619005,0.71747519,131.28,131.26,1.68633709]
[1767446623302,0.81747519,131.29,131.26,9.96315365]
[1767446623505,0.81747519,131.29,131.27,1.68633709]
[1767446624629,0.81747519,131.29,131.26,9.96315365]
[1767446625030,0.81747519,131.29,131.27,1.68633709]
[1767446627732,0.81747519,131.29,131.26,8.27681656]
[1767446627911,0.81747519,131.29,131.27,1.68633709]
[1767446628525,0.81747519,131.29,131.27,9.96263153]
[1767446628726,0.1,131.29,131.27,9.96263153]
[1767446631034,0.81747519,131.29,131.27,9.96263153]
[1767446634647,0.81747519,131.29,131.27,9.30408414]
[1767446637148,0.81747519,131.29,131.27,9.96263153]
[1767446639146,0.81747519,131.29,131.27,9.30408414]
[1767446639742,4.69046652,131.33,131.29,0.55854739]
[1767446639929,0.71442571,131.32,131.3,1.68633709]
[1767446640240,0.71442571,131.32,131.29,1.68633709]
[1767446640643,0.71442571,131.32,131.28,1.68633709]
[1767446640848,0.71442571,131.32,131.27,23.20408414]
[1767446641020,0.71442571,131.32,131.27,9.30408414]
[1767446641519,0.71442571,131.32,131.28,1.68633709]
[1767446641724,0.71442571,131.31,131.27,9.30408414]
[1767446641940,0.71442571,131.31,131.27,9.80263153]
[1767446642840,0.71442571,131.31,131.28,1.68633709]
[1767446646548,0.71442571,131.31,131.28,9.30358765]
[1767446647648,0.71442571,131.31,131.27,8.11631659]
[1767446647849,0.71442571,131.31,131.28,1.68633709]
[1767446650353,0.71442571,131.31,131.27,8.11631659]
[1767446650644,0.71442571,131.31,131.28,1.68633709]
[1767446652560,8.32985622,131.32,131.29,0.49854739]
[1767446652863,7.6138267,131.34,131.31,0.49854739]
[1767446653036,0.71442571,131.33,131.3,2.18488448]
[1767446655762,0.71442571,131.33,131.3,0.49854739]
[1767446655958,0.71442571,131.33,131.3,2.18488448]
[1767446656864,0.71442571,131.33,131.3,0.49854739]
[1767446658668,0.71442571,131.32,131.29,7.61625745]
[1767446658958,0.71442571,131.32,131.29,8.11480484]
[1767446659163,0.71442571,131.32,131.29,9.80114193]
[1767446660239,0.71442571,131.32,131.29,7.61625745]
[1767446660457,0.71442571,131.32,131.29,9.80114193]
[1767446661470,0.71442571,131.32,131.29,9.30259454]
[1767446661857,0.71442571,131.32,131.29,7.61625745]
[1767446662370,0.71442571,131.32,131.29,8.11480484]
[1767446664474,0.71442571,131.33,131.3,0.49854739]
[1767446664672,0.71442571,131.34,131.32,1.68633709]
[1767446665052,0.71442571,131.34,131.3,7.61610002]
[1767446665861,0.71442571,131.33,131.3,7.61610002]
[1767446666054,0.71442571,131.33,131.29,7.61652]
[1767446666255,0.71442571,131.33,131.29,9.30285709]
[1767446666570,0.71442571,131.38,131.32,1.68633709]
[1767446666771,0.71442571,131.37,131.31,9.30165209]
[1767446666957,0.71442571,131.37,131.32,1.68633709]
[1767446667157,0.71442571,131.36,131.31,9.30165209]
[1767446667373,0.71442571,131.35,131.31,7.615315]
[1767446668172,0.71442571,131.34,131.3,7.61565242]
[1767446668370,0.71442571,131.33,131.28,20.72863293]
[1767446668881,0.71442571,131.33,131.29,1.68633709]
[1767446669176,0.71442571,131.33,131.29,9.30288853]
[1767446669351,0.71442571,131.33,131.28,26.65960236]
[1767446669556,0.71442571,131.33,131.29,1.68633709]
[1767446670177,8.32907596,131.33,131.29,1.68633709]
[1767446670980,8.32907596,131.33,131.28,9.30364361]
[1767446671663,0.71442571,131.33,131.28,9.30364361]
[1767446673366,7.61285153,131.36,131.32,1.68633709]
[1767446673573,7.61285153,131.36,131.33,1.68633709]
[1767446675277,8.2700208,131.39,131.35,1.68633709]
[1767446675480,0.65868648,131.38,131.33,7.61429923]
[1767446675773,0.65868648,131.38,131.34,1.68633709]
[1767446676356,0.65868648,131.38,131.34,9.29993675]
[1767446677778,0.65868648,131.37,131.33,1.68633709]
[1767446678563,0.65868648,131.37,131.33,2.63022964]
[1767446678754,0.65868648,131.37,131.33,10.24436004]
[1767446678960,0.65868648,131.37,131.33,7.6141304]
[1767446679481,0.65868648,131.37,131.32,10.24504602]
[1767446679482,0.65868648,131.36,131.32,10.24504602]
[1767446680268,0.65868648,131.36,131.31,2.63022964]
[1767446680468,0.65868648,131.35,131.31,10.24562155]
[1767446682982,0.65868648,131.35,131.31,7.61539191]
[1767446683784,0.65868648,131.34,131.31,7.61539191]
[1767446684175,0.65868648,131.34,131.3,7.61597797]
[1767446685186,0.65868648,131.33,131.3,7.61597797]
[1767446686679,0.65868648,131.31,131.27,36.75104924]
[1767446686871,0.65868648,131.31,131.27,16.53022964]
[1767446687800,0.65868648,131.31,131.27,24.14790291]
[1767446689495,0.65868648,131.31,131.27,10.24790291]
[1767446690785,0.77868648,131.31,131.27,7.61767327]
[1767446691972,0.77868648,131.31,131.27,10.24790291]
[1767446692185,0.77868648,131.31,131.27,2.63022964]
[1767446692374,0.77868648,131.31,131.28,2.63022964]
[1767446692876,0.12,131.31,131.28,2.63022964]
[1767446693270,0.65868648,131.32,131.28,10.12701999]
[1767446693673,0.65868648,131.32,131.29,2.63022964]
[1767446694092,0.65868648,131.32,131.28,7.61679035]
[1767446694295,0.65868648,131.32,131.29,2.63022964]
[1767446694689,0.65868648,131.33,131.3,7.61614623]
[1767446695676,0.65868648,131.33,131.29,7.61672633]
[1767446696374,0.65868648,131.33,131.29,10.24695597]
[1767446696776,38.04348566,131.43,131.33,0.65868648]
[1767446696981,38.04348566,131.43,131.29,26.65854215]
[1767446696982,2.63022964,131.37,131.32,13.9]
[1767446697385,2.63022964,131.36,131.32,13.9]
[1767446698794,0.65868648,131.35,131.32,13.9]
[1767446699000,0.65868648,131.35,131.32,14.55868648]
[1767446699881,0.65868648,131.35,131.32,14.49868648]
[1767446700290,0.65868648,131.35,131.32,0.65868648]
[1767446700600,0.65868648,131.35,131.31,7.61504741]
[1767446702423,0.66701631,131.34,131.3,22.17463225]
[1767446702908,0.66701631,131.34,131.3,8.27463225]
[1767446704410,0.66701631,131.34,131.3,10.90486189]
[1767446705607,0.66701631,131.34,131.3,10.24617541]
[1767446705788,0.66701631,131.33,131.29,29.94745827]
[1767446707309,0.66701631,131.33,131.29,10.90564245]
[1767446708716,0.66701631,131.33,131.29,8.27541281]
[1767446709109,0.66701631,131.33,131.29,10.90564245]
[1767446710516,0.66701631,131.33,131.29,8.27541281]
[1767446710691,0.66701631,131.33,131.29,10.90564245]
[1767446711819,0.66701631,131.33,131.29,8.27541281]
[1767446712120,0.66701631,131.32,131.28,10.24736014]
[1767446713011,0.66701631,131.31,131.28,2.63022964]
[1767446713712,0.66701631,131.31,131.27,3.28891612]
[1767446714196,0.66701631,131.31,131.27,10.90657777]
[1767446714391,0.66701631,131.31,131.25,27.39700884]
[1767446714392,0.66701631,131.29,131.25,0.65868648]
[1767446714911,0.66701631,131.29,131.25,3.28891612]
[1767446715392,0.66701631,131.29,131.25,0.65868648]
[1767446715598,3.29724595,131.29,131.25,8.27724704]
[1767446716623,0.66701631,131.28,131.25,7.61856056]
[1767446717004,0.66701631,131.28,131.25,8.27724704]
[1767446717322,0.66701631,131.27,131.24,8.2781113]
[1767446717701,0.66701631,131.27,131.25,7.61902192]
[1767446718417,0.66701631,131.27,131.24,8.27813355]
[1767446722828,0.66701631,131.27,131.24,10.90836319]
[1767446723015,0.66701631,131.27,131.23,19.04979776]
[1767446723220,0.66701631,131.27,131.23,21.6800274]
[1767446723425,0.66701631,131.27,131.23,22.33871388]
[1767446725737,0.66701631,131.27,131.24,2.63022964]
[1767446728924,0.66701631,131.27,131.24,10.90830534]
[1767446729834,0.66701631,131.27,131.23,19.04979776]
[1767446729835,0.7233977,131.26,131.23,3.28891612]
[1767446730014,0.7233977,131.26,131.23,2.63022964]
[1767446730213,0.7233977,131.26,131.22,2.63022964]
[1767446730407,0.7233977,131.26,131.21,14.55868648]
[1767446730408,3.32362735,131.26,131.21,3.28891612]
[1767446730631,2.63022964,131.26,131.21,3.28891612]
[1767446731145,10.24908764,131.26,131.21,10.91005449]
[1767446732339,0.71133707,131.25,131.21,10.91005449]
[1767446733956,0.71133707,131.25,131.21,8.27982485]
[1767446734117,0.71133707,131.25,131.21,10.91005449]
[1767446734434,0.71133707,131.24,131.21,10.91005449]
[1767446736325,0.71133707,131.24,131.21,10.25136801]
[1767446736528,0.71133707,131.24,131.2,10.94086732]
[1767446737838,0.71133707,131.24,131.2,8.31063768]
[1767446738025,0.71133707,131.24,131.2,10.94086732]
[1767446738640,0.71133707,131.24,131.2,9.99725727]
[1767446739319,0.71133707,131.24,131.21,8.31005513]
[1767446751651,0.71133707,131.24,131.21,9.99667472]
[1767446751957,0.68133708,131.24,131.21,9.99667472]
[1767446752126,0.65133709,131.24,131.21,9.99667472]
[1767446753760,7.6196617,131.24,131.2,0.70399043]
[1767446754054,9.30628129,131.24,131.19,2.39061002]
[1767446754346,0.71133707,131.23,131.19,0.70399043]
[1767446755157,8.33155247,131.23,131.19,8.32639614]
[1767446755956,8.30155248,131.23,131.19,8.32639614]
[1767446756566,7.6202154,131.23,131.19,8.32639614]
[1767446757759,0.71133707,131.25,131.22,0.70399043]
[1767446757963,2.39795666,131.26,131.22,0.70399043]
[1767446758264,7.61788679,131.27,131.22,0.70399043]
[1767446758265,0.71133707,131.25,131.22,0.70399043]
[1767446758563,0.71133707,131.25,131.21,9.30784165]
[1767446762655,8.33042624,131.25,131.21,9.30784165]
[1767446763370,0.68304975,131.24,131.21,9.30784165]
[1767446763867,0.68304975,131.24,131.2,1.68661959]
[1767446764057,0.68304975,131.24,131.18,7.62311327]
[1767446764058,0.68304975,131.22,131.18,7.62311327]
[1767446764260,0.65304976,131.22,131.18,9.30973286]
[1767446764457,0.65304976,131.22,131.18,7.65311326]
[1767446764658,0.65304976,131.22,131.18,9.33973285]
[1767446764856,0.65304976,131.22,131.18,7.65311326]
[1767446766164,8.27393776,131.22,131.18,7.65311326]
[1767446766970,0.68304975,131.21,131.18,7.65311326]
[1767446768158,8.30393775,131.22,131.18,7.65311326]
[1767446768955,0.68304975,131.21,131.18,0.02999999]
[1767446769470,0.68304975,131.21,131.17,7.62369444]
[1767446769471,0.68304975,131.2,131.17,7.62369444]
[1767446769674,0.68304975,131.2,131.17,0.02999999]
[1767446770362,0.68304975,131.2,131.16,21.55406322]
[1767446770965,0.68304975,131.19,131.16,13.9]
[1767446771366,0.68304975,131.19,131.15,9.34124366]
[1767446772457,0.68304975,131.19,131.15,0.02999999]
[1767446772664,0.68304975,131.18,131.15,0.02999999]
[1767446774481,0.65304976,131.18,131.15,0.02999999]
[1767446774985,0.65304976,131.18,131.14,9.37205803]
[1767446779485,0.65304976,131.18,131.15,0.05999998]
[1767446780886,0.65304976,131.18,131.15,9.37103334]
[1767446781787,0.65304976,131.18,131.15,7.68441375]
[1767446782490,0.65304976,131.18,131.15,7.62441377]
[1767446783587,0.65304976,131.18,131.15,7.68441375]
[1767446783781,2.36966934,131.19,131.16,0.05999998]
[1767446783981,0.68304975,131.19,131.15,7.62441377]
[1767446784184,0.68304975,131.19,131.15,7.68441375]
[1767446785690,2.36966934,131.19,131.15,7.68441375]
[1767446785871,2.36966934,131.19,131.15,0.05999998]
[1767446786072,2.36966934,131.18,131.14,7.68543844]
[1767446786273,0.68304975,131.17,131.14,0.05999998]
[1767446786481,2.33966935,131.17,131.14,0.05999998]
[1767446789266,0.65304976,131.17,131.14,0.05999998]
[1767446792496,0.70687957,131.15,131.12,7.71660155]
[1767446793684,0.70687957,131.15,131.11,7.71695271]
[1767446793885,0.70687957,131.14,131.11,7.71695271]
[1767446795098,0.64687959,131.14,131.11,7.71695271]
[1767446799201,0.64687959,131.14,131.11,0.08999997]
[1767446800900,0.64687959,131.14,131.1,10.26647695]
[1767446801100,0.70687957,131.13,131.1,10.26647695]
[1767446801307,0.70687957,131.13,131.1,10.4164769]
[1767446804484,0.70687957,131.15,131.12,0.14999995]
[1767446804689,0.70687957,131.16,131.13,0.14999995]
[1767446804889,0.70687957,131.16,131.12,2.78919993]
[1767446805905,0.70687957,131.15,131.12,2.78919993]
[1767446806512,8.33059285,131.17,131.13,2.78919993]
[1767446806814,0.70687957,131.2,131.16,2.63919998]
[1767446807589,0.70687957,131.2,131.16,2.78919993]
[1767446807791,0.70687957,131.19,131.16,2.78919993]
[1767446808291,0.70687957,131.19,131.16,2.63919998]
[1767446810011,0.70687957,131.19,131.16,10.26335175]
[1767446810214,0.70687957,131.19,131.17,2.63919998]
[1767446811312,0.70687957,131.19,131.16,10.26335175]
[1767446812110,0.70687957,131.2,131.17,2.78919993]
[1767446812307,0.70687957,131.22,131.18,2.78919993]
[1767446812687,8.32766908,131.22,131.19,2.63919998]
[1767446812906,0.70687957,131.22,131.19,2.63919998]
[1767446813504,0.70687957,131.22,131.19,2.78919993]
[1767446813716,0.70687957,131.23,131.19,2.78919993]
[1767446814093,0.70687957,131.22,131.19,2.78919993]
[1767446814822,0.70687957,131.22,131.19,10.41159204]
[1767446815312,0.70687957,131.23,131.2,0.14999995]
[1767446815514,0.70687957,131.23,131.2,2.78919993]
[1767446816511,0.70687957,131.23,131.2,10.41091664]
[1767446823818,0.72171962,131.24,131.2,10.41091664]
[1767446824222,0.72171962,131.24,131.21,7.77119062]
[1767446824519,0.72171962,131.24,131.21,10.4103906]
[1767446825217,0.72171962,131.24,131.21,10.26039065]
[1767446827618,0.72171962,131.24,131.21,8.81039065]
[1767446827803,0.72171962,131.24,131.2,10.26091655]
[1767446828121,0.72171962,131.24,131.21,6.94305976]
[1767446828322,0.72171962,131.24,131.21,6.88305976]
[1767446829428,0.72171962,131.24,131.21,9.52225974]
[1767446833627,0.72171962,131.24,131.21,10.1925962]
[1767446834007,0.72171962,131.24,131.21,3.30953644]
[1767446835532,0.72171962,131.24,131.21,10.9306184]
[1767446835906,0.72171962,131.24,131.22,2.63919998]
[1767446838632,0.72171962,131.24,131.21,10.9306184]
[1767446842218,0.72171962,131.24,131.22,0.67033646]
[1767446842531,22.16039398,131.26,131.22,3.30953644]
[1767446842736,0.099,131.25,131.22,3.30953644]
[1767446845914,0.099,131.25,131.23,0.67033646]
[1767446847822,8.24039398,131.26,131.23,0.67033646]
[1767446852341,0.62171962,131.26,131.23,0.67033646]
[1767446852531,0.62171962,131.26,131.23,3.30953644]
[1767446852727,0.62171962,131.28,131.25,0.67247719]
[1767446852933,0.62171962,131.28,131.25,3.31167717]
[1767446853537,21.51687491,131.29,131.26,0.67247719]
[1767446853743,13.9,131.29,131.27,0.67247719]
[1767446853930,0.1584,131.29,131.27,0.61247719]
[1767446854132,0.1584,131.29,131.26,2.63919998]
[1767446855944,0.1584,131.29,131.26,3.31167717]
[1767446858539,0.1584,131.29,131.26,2.35766697]
[1767446862033,7.77522291,131.29,131.26,0.67247719]
[1767446862225,0.61708642,131.28,131.26,0.67247719]
[1767446864746,7.61682291,131.29,131.26,0.67247719]
[1767446864953,8.29854253,131.29,131.26,0.67247719]
[1767446866550,8.29854253,131.29,131.22,13.9]
[1767446866551,0.099,131.28,131.24,1.68518978]
[1767446866758,0.099,131.28,131.24,2.35935536]
[1767446867644,0.099,131.28,131.24,0.67416558]
[1767446876766,21.61651667,131.28,131.24,0.67416558]
[1767446880668,7.71651667,131.28,131.24,0.67416558]
[1767446882368,0.67589242,131.27,131.24,0.67416558]
[1767446882553,0.67589242,131.27,131.23,2.36351833]
[1767446882748,0.67589242,131.27,131.23,0.67832855]
[1767446882953,0.67589242,131.27,131.23,2.36351833]
[1767446883367,8.29923629,131.28,131.24,0.67832855]
[1767446883568,0.099,131.27,131.24,0.67832855]
[1767446883757,0.099,131.27,131.23,1.68518978]
[1767446884871,0.099,131.27,131.23,9.30533909]
[1767446886275,0.099,131.27,131.23,9.98366764]
[1767446887175,0.099,131.27,131.22,7.62055841]
[1767446887376,0.099,131.27,131.22,9.98407674]
[1767446888168,0.099,131.27,131.22,9.30574819]
[1767446889049,0.099,131.27,131.23,0.67832855]
[1767446889753,0.67589242,131.26,131.23,0.67832855]
[1767446891978,0.10476892,131.25,131.23,0.67832855]
[1767446892190,0.10476892,131.25,131.22,0.67832855]
[1767446899697,0.67018119,131.24,131.22,0.67832855]
[1767446900881,0.67018119,131.24,131.21,0.67832855]
[1767446901179,8.29005846,131.24,131.21,0.67832855]
[1767446902583,9.97524824,131.24,131.21,0.67832855]
[1767446906884,9.30433558,131.25,131.21,0.67832855]
[1767446907076,8.30029759,131.26,131.22,0.67832855]
[1767446907385,9.98548737,131.26,131.22,0.67832855]
[1767446908289,9.98548737,131.26,131.22,8.29903684]
[1767446908885,0.099,131.25,131.22,8.29903684]
[1767446910288,0.099,131.25,131.21,8.33102581]
[1767446910668,9.98548737,131.26,131.22,0.70965549]
[1767446912381,8.30029759,131.26,131.22,0.70965549]
[1767446912687,9.98548737,131.26,131.22,0.70965549]
[1767446920508,10.935232,131.26,131.22,0.70965549]
[1767446921202,8.30029759,131.26,131.22,0.70965549]
[1767446921378,10.935232,131.26,131.22,0.70965549]
[1767446926600,10.25351238,131.26,131.22,0.70965549]
[1767446926794,10.35251238,131.26,131.22,0.70965549]
[1767446926994,0.67589242,131.25,131.22,0.70965549]
[1767446928998,10.93021263,131.25,131.22,0.70965549]
[1767446930003,8.29527822,131.25,131.22,0.70965549]
[1767446937912,0.10476892,131.24,131.21,7.62128988]
[1767446938318,0.10476892,131.24,131.21,8.3183437]
[1767446938505,8.30110542,131.25,131.22,0.69705382]
[1767446939014,0.099,131.24,131.2,3.33198823]
[1767446943525,0.099,131.24,131.21,8.31065808]
[1767446948720,0.099,131.24,131.2,7.62195121]
[1767446948922,0.11025239,131.25,131.22,0.68928776]
[1767446952104,7.72934868,131.25,131.22,0.68928776]
[1767446952402,10.36428309,131.25,131.22,0.68928776]
[1767446952626,3.29968696,131.24,131.2,0.68928776]
[1767446952836,0.11579739,131.23,131.2,0.68928776]
[1767446953703,105.70528797,131.24,131.2,0.68928776]
[1767446954123,7.62020879,131.23,131.2,0.68928776]
[1767446958830,7.62021436,131.23,131.2,0.68928776]
[1767446959027,113.32494904,131.24,131.21,0.68928776]
[1767446960147,0.11025239,131.23,131.2,7.62184708]
[1767446960433,112.76484787,131.24,131.21,0.68928776]
[1767446963827,0.66475255,131.23,131.21,0.68928776]
[1767446964047,3.29968696,131.23,131.2,0.68928776]
[1767446964908,0.11579739,131.22,131.2,0.68928776]
[1767446965112,0.11579739,131.22,131.18,0.68928776]
[1767446965113,2.7507318,131.22,131.18,0.68928776]
[1767446965934,10.37178657,131.22,131.18,0.68928776]
[1767446966813,3.29419741,131.21,131.18,0.68928776]
[1767446967838,10.91573839,131.21,131.18,0.68928776]
[1767446969835,2.63493441,131.2,131.18,0.68928776]
[1767446971431,10.37812768,131.2,131.18,0.68928776]
[1767446971630,10.37812768,131.2,131.17,0.689617]
[1767446971816,0.65388269,131.19,131.15,22.21440547]
[1767446972016,0.65388269,131.19,131.15,8.31440547]
[1767446972416,0.65388269,131.19,131.16,0.689617]
[1767446972915,0.65388269,131.19,131.15,7.62478847]
[1767446973138,0.65388269,131.19,131.15,8.31440547]
[1767446973929,24.27589563,131.2,131.16,0.689617]
[1767446974338,0.67589242,131.19,131.16,0.689617]
[1767446975141,0.64589243,131.19,131.17,0.689617]
[1767446975642,24.17689563,131.2,131.17,0.689617]
[1767446975937,2.63493441,131.19,131.17,0.689617]
[1767446976440,21.54196122,131.2,131.17,0.689617]
[1767446976441,24.17689563,131.2,131.17,0.689617]
[1767446977140,24.82861526,131.2,131.17,0.689617]
[1767446980643,23.88174094,131.2,131.17,0.689617]
[1767446987427,23.85174095,131.2,131.17,0.689617]
[1767446988526,8.21368087,131.2,131.17,0.689617]
[1767446988727,23.82174096,131.2,131.17,0.689617]
[1767446993453,9.90174096,131.2,131.17,0.689617]
[1767446996551,0.099,131.19,131.17,0.689617]
[1767447000561,1.68806009,131.19,131.17,0.689617]
[1767447002163,22.13368087,131.2,131.17,0.689617]
[1767447002365,1.68806009,131.19,131.17,0.689617]
[1767447003846,1.6580601,131.19,131.17,0.689617]
[1767447004051,1.68806009,131.19,131.17,0.689617]
[1767447006668,1.78706009,131.19,131.17,0.689617]
[1767447006844,1.78706009,131.19,131.16,7.62424799]
[1767447007361,1.78706009,131.19,131.16,0.6821353]
[1767447008265,1.68806009,131.19,131.16,0.6821353]
[1767447008652,1.6580601,131.19,131.17,0.6821353]
[1767447008953,1.68806009,131.2,131.17,0.6821353]
[1767447010569,1.68806009,131.2,131.18,0.6821353]
[1767447011271,111.70887551,131.22,131.18,0.6821353]
[1767447011471,20.75248178,131.31,131.18,0.6821353]
[1767447011472,9.95977189,131.24,131.19,0.6821353]
[1767447011666,13.92,131.26,131.19,0.6821353]
[1767447011667,8.27097497,131.25,131.19,0.6821353]
[1767447011875,9.95903506,131.25,131.2,0.6821353]
[1767447012077,1.68806009,131.24,131.21,0.6821353]
[1767447014155,23.87903506,131.25,131.21,0.6821353]
[1767447014654,1.68806009,131.25,131.22,0.6821353]
[1767447018874,23.22666365,131.26,131.23,0.6821353]
[1767447020762,23.32566365,131.26,131.23,0.6821353]
[1767447028576,2.33425252,131.25,131.22,0.6821353]
[1767447028889,1.68806009,131.24,131.22,0.6821353]
[1767447034400,1.68806009,131.25,131.22,0.6821353]
[1767447034586,16.25977972,131.26,131.23,0.71958335]
[1767447034979,15.60806009,131.26,131.23,0.71958335]
[1767447035289,15.70706009,131.26,131.23,0.71958335]
[1767447037076,0.64619243,131.25,131.23,0.71958335]
[1767447037288,0.64619243,131.25,131.22,7.62071074]
[1767447038000,0.14619243,131.25,131.22,7.62071074]
[1767447038980,1.68806009,131.25,131.22,7.62071074]
[1767447039896,1.89977972,131.25,131.22,8.34029409]
[1767447040396,0.099,131.24,131.22,7.62071074]
[1767447045810,24.17408351,131.26,131.23,0.71958335]
[1767447048178,24.27308351,131.26,131.23,0.71958335]
[1767447053106,24.17408351,131.26,131.23,0.71958335]
[1767447054505,21.53863189,131.26,131.23,0.71958335]
[1767447054707,24.17408351,131.26,131.23,0.71958335]
[1767447056907,24.27308351,131.26,131.23,0.71958335]
[1767447057908,24.27308351,131.26,131.23,0.65958335]
[1767447059416,0.099,131.26,131.23,0.65958335]
[1767447059610,16.63445162,131.26,131.23,0.65958335]
[1767447061923,16.53545162,131.26,131.23,0.65958335]
[1767447062099,13.9,131.26,131.23,0.65958335]
[1767447062816,112.92380368,131.27,131.23,0.65958335]
[1767447063008,126.82380368,131.27,131.23,0.65958335]
[1767447063209,126.82380368,131.27,131.24,0.70396875]
[1767447063517,100.225,131.27,131.23,10.25565512]